lending/lending_fUSD_20250409
["ID","MTS","AMOUNT","RATE_DAILY","PERIOD"]
[357617705,1744235572847,-500.0,0.00042191,2]
[357617706,1744235572856,-517.26,0.00042191,2]
[357617707,1744235572866,-509.1,0.00042191,2]
[357617708,1744235572875,-544.02,0.00042191,2]
[357617709,1744235572885,-1591.25,0.00042191,2]
[357617710,1744235572895,-161.350545,0.00042191,2]
[357617711,1744235572905,-922.766495,0.00042191,2]
[357617712,1744235572916,-500.0,0.00042191,2]
[357617713,1744235573042,-512.21,0.00042191,2]
[357617714,1744235573053,-1481.605419,0.00042191,2]
[357617715,1744235573063,-575.18,0.00042191,2]
[357617716,1744235573072,-1103.241651,0.00042191,2]
[357617717,1744235573082,-500.0,0.00042191,2]
[357617718,1744235573092,-555.55,0.00042191,2]
[357617719,1744235573101,-716.17,0.00042191,2]
[357617720,1744235573111,-569.8,0.00042191,2]
[357617721,1744235573120,-500.0,0.00042191,2]
[357617722,1744235573130,-500.0,0.00042191,2]
[357617723,1744235573139,-523.55,0.00042191,2]
[357617724,1744235573148,-500.0,0.00042191,2]
[357617725,1744235573159,-500.0,0.00042191,2]
[357617726,1744235573168,-641.56,0.00042191,2]
[357617727,1744235573177,-522.12,0.00042191,2]
[357617728,1744235573186,-671.33,0.00042191,2]
[357617729,1744235573196,-500.0,0.00042191,2]
[357617730,1744235573205,-898.3,0.00042191,2]
[357617731,1744235573215,-594.50678348,0.00042191,2]
[357617732,1744235573225,-500.0,0.00042191,2]
[357617733,1744235573235,-500.0,0.00042191,2]
[357617734,1744235573244,-500.0,0.00042191,2]
[357617735,1744235573253,-156.788597,0.00042191,2]
[357617736,1744235573265,-1488.11,0.00042191,2]
[357617737,1744235573278,-619.74740391,0.00042191,2]
[357617738,1744235573288,-500.0,0.00042191,2]
[357617739,1744235573298,-1346.88,0.00042191,2]
[357617740,1744235573307,-600.91,0.00042191,2]
[357617741,1744235573319,-500.0,0.00042191,2]
[357617742,1744235573328,-578.77101137,0.00042191,2]
[357617743,1744235573338,-500.0,0.00042191,2]
[357617744,1744235573347,-1062.56,0.00042191,2]
[357617745,1744235573356,-1328.67,0.00042191,2]
[357617746,1744235573366,-1098.1,0.00042191,2]
[357617747,1744235573375,-1109.78,0.00042191,2]
[357617748,1744235573385,-500.0,0.00042191,2]
[357617749,1744235573394,-500.0,0.00042191,2]
[357617750,1744235573404,-500.0,0.00042191,2]
[357617751,1744235573414,-2058.98,0.00042191,2]
[357617752,1744235573424,-601.54,0.00042191,2]
[357617753,1744235573433,-704.15,0.00042191,2]
[357617754,1744235573442,-500.0,0.00042191,2]
[357617755,1744235573451,-1533.75,0.00042191,2]
[357617756,1744235573461,-890.15,0.00042191,2]
[357617757,1744235573472,-2033.59,0.00042191,2]
[357617758,1744235573481,-1091.45,0.00042191,2]
[357617759,1744235573492,-998.38,0.00042191,2]
[357617760,1744235573503,-990.73,0.00042191,2]
[357617761,1744235573512,-740.02,0.00042191,2]
[357617762,1744235573522,-619.85359469,0.00042191,2]
[357617763,1744235573532,-840.51,0.00042191,2]
[357617764,1744235573542,-1255.28,0.00042191,2]
[357617765,1744235573552,-500.0,0.00042191,2]
[357617766,1744235573561,-628.73,0.00042191,2]
[357617767,1744235573572,-1122.08,0.00042191,2]
[357617768,1744235573583,-851.89,0.00042191,2]
[357617769,1744235573592,-500.0,0.00042191,2]
[357617770,1744235573601,-500.0,0.00042191,2]
[357617771,1744235573610,-1594.69,0.00042191,2]
[357617772,1744235573620,-846.31,0.00042191,2]
[357617773,1744235573629,-634.01,0.00042191,2]
[357617774,1744235573639,-500.0,0.00042191,2]
[357617775,1744235573649,-500.0,0.00042191,2]
[357617776,1744235573658,-1789.24,0.00042191,2]
[357617777,1744235573668,-500.0,0.00042191,2]
[357617778,1744235573678,-500.0,0.00042191,2]
[357617779,1744235573687,-500.0,0.00042191,2]
[357617780,1744235573697,-904.2,0.00042191,2]
[357617781,1744235573706,-2100.49,0.00042191,2]
[357617782,1744235573716,-1008.97,0.00042191,2]
[357617783,1744235573725,-575.38,0.00042191,2]
[357617784,1744235573735,-980.91,0.00042191,2]
[357617785,1744235573745,-744.07,0.00042191,2]
[357617786,1744235573754,-1364.94,0.00042191,2]
[357617787,1744235573763,-500.0,0.00042191,2]
[357617788,1744235573773,-500.0,0.00042191,2]
[357617789,1744235573782,-747.87,0.00042191,2]
[357617790,1744235573792,-850.11,0.00042191,2]
[357617791,1744235573801,-1247.64,0.00042191,2]
[357617792,1744235573810,-1102.32,0.00042191,2]
[357617793,1744235573819,-659.47,0.00042191,2]
[357617794,1744235573828,-588.76,0.00042191,2]
[357617795,1744235573837,-500.0,0.00042191,2]
[357617796,1744235573846,-500.0,0.00042191,2]
[357617797,1744235573855,-626.4,0.00042191,2]
[357617798,1744235573864,-500.0,0.00042191,2]
[357617799,1744235573874,-992.17,0.00042191,2]
[357617800,1744235573883,-183.03957364,0.00042191,2]
[357617801,1744235573893,-216.93903078,0.00042191,2]
[357617802,1744235573902,-500.0,0.00042191,2]
[357617803,1744235573911,-863.74,0.00042191,2]
[357617804,1744235573920,-669.2,0.00042191,2]
[357617805,1744235573930,-500.2,0.00042191,2]
[357617806,1744235573940,-500.0,0.00042191,2]
[357617807,1744235573950,-500.0,0.00042191,2]
[357617808,1744235573960,-500.0,0.00042191,2]
[357617809,1744235573969,-623.22,0.00042191,2]
[357617810,1744235573979,-987.07,0.00042191,2]
[357617811,1744235573988,-500.0,0.00042191,2]
[357617812,1744235573998,-500.0,0.00042191,2]
[357617813,1744235574007,-500.0,0.00042191,2]
[357617814,1744235574016,-663.93,0.00042191,2]
[357617815,1744235574025,-500.0,0.00042191,2]
[357617816,1744235574034,-950.19,0.00042191,2]
[357617817,1744235574043,-1150.41,0.00042191,2]
[357617818,1744235574052,-700.43,0.00042191,2]
[357617819,1744235574062,-500.0,0.00042191,2]
[357617820,1744235574071,-1196.11,0.00042191,2]
[357617821,1744235574080,-533.1,0.00042191,2]
[357617822,1744235574089,-500.0,0.00042191,2]
[357617823,1744235574098,-1644.09,0.00042191,2]
[357617824,1744235574107,-500.0,0.00042191,2]
[357617825,1744235574116,-509.54,0.00042191,2]
[357617826,1744235574126,-605.75,0.00042191,2]
[357617827,1744235574135,-872.19,0.00042191,2]
[357617828,1744235574144,-2888.05,0.00042191,2]
[357617829,1744235574154,-1530.18,0.00042191,2]
[357617830,1744235574163,-538.29,0.00042191,2]
[357617831,1744235574172,-1392.95,0.00042191,2]
[357617832,1744235574182,-529.21,0.00042191,2]
[357617833,1744235574191,-760.73,0.00042191,2]
[357617834,1744235574201,-1014.21,0.00042191,2]
[357617835,1744235574210,-728.15,0.00042191,2]
[357617836,1744235574219,-671.68,0.00042191,2]
[357617837,1744235574228,-582.4,0.00042191,2]
[357617838,1744235574237,-600.66,0.00042191,2]
[357617839,1744235574247,-905.89,0.00042191,2]
[357617840,1744235574256,-500.0,0.00042191,2]
[357617841,1744235574265,-640.01,0.00042191,120]
[357617842,1744235574275,-461.057575,0.00042191,2]
[357617843,1744235574284,-600.12,0.00042191,2]
[357617844,1744235574294,-500.0,0.00042191,2]
[357617845,1744235574303,-696.24,0.00042191,2]
[357617846,1744235574312,-574.51,0.00042191,2]
[357617847,1744235574322,-621.38,0.00042191,2]
[357617848,1744235574331,-564.04,0.00042191,2]
[357617849,1744235574340,-150.98008519,0.00042191,2]
[357617850,1744235574349,-662.39,0.00042191,2]
[357617851,1744235574358,-1138.96,0.00042191,2]
[357617852,1744235574367,-500.0,0.00042191,2]
[357617853,1744235574376,-506.09,0.00042191,2]
[357617854,1744235574386,-557.52,0.00042191,2]
[357617855,1744235574395,-593.38,0.00042191,2]
[357617856,1744235574404,-978.21,0.00042191,2]
[357617857,1744235574414,-500.0,0.00042191,2]
[357617858,1744235574424,-500.0,0.00042191,2]
[357617859,1744235574434,-879.62,0.00042191,2]
[357617860,1744235574444,-915.14,0.00042191,2]
[357617861,1744235574454,-972.17,0.00042191,2]
[357617862,1744235574463,-689.1,0.00042191,2]
[357617863,1744235574475,-693.42,0.00042191,2]
[357617864,1744235574484,-500.0,0.00042191,2]
[357617865,1744235574497,-1204.18,0.00042191,2]
[357617866,1744235574507,-478.65361095,0.00042191,2]
[357617867,1744235574518,-2109.43,0.00042191,2]
[357617868,1744235574528,-922.86,0.00042191,2]
[357617869,1744235574537,-585.28396968,0.00042191,2]
[357617870,1744235574548,-500.0,0.00042191,2]
[357617871,1744235574558,-738.28,0.00042191,2]
[357617872,1744235574568,-524.33,0.00042191,2]
[357617873,1744235574578,-582.79,0.00042191,2]
[357617874,1744235574588,-500.0,0.00042191,2]
[357617875,1744235574598,-529.9,0.00042191,2]
[357617876,1744235574607,-520.25,0.00042191,2]
[357617877,1744235574617,-500.0,0.00042191,2]
[357617878,1744235574628,-500.0,0.00042191,2]
[357617879,1744235574637,-500.0,0.00042191,2]
[357617880,1744235574647,-563.51,0.00042191,2]
[357617881,1744235574657,-515.76,0.00042191,2]
[357617882,1744235574667,-1455.64,0.00042191,2]
[357617883,1744235574678,-500.0,0.00042191,2]
[357617884,1744235574687,-944.08,0.00042191,2]
[357617885,1744235574697,-1259.75,0.00042191,2]
[357617886,1744235574707,-949.83,0.00042191,2]
[357617887,1744235574716,-867.9,0.00042191,2]
[357617888,1744235574726,-712.22,0.00042191,2]
[357617889,1744235574735,-676.54,0.00042191,2]
[357617890,1744235574745,-2873.89,0.00042191,2]
[357617891,1744235574755,-865.86,0.00042191,2]
[357617892,1744235574764,-734.44,0.00042191,2]
[357617893,1744235574774,-1213.14,0.00042191,2]
[357617894,1744235574783,-500.0,0.00042191,2]
[357617895,1744235574793,-510.47,0.00042191,2]
[357617896,1744235574802,-1235.75,0.00042191,2]
[357617897,1744235574812,-2062.74,0.00042191,2]
[357617898,1744235574822,-500.0,0.00042191,2]
[357617899,1744235574831,-1627.43,0.00042191,2]
[357617900,1744235574841,-779.34,0.00042191,2]
[357617901,1744235574850,-1736.3,0.00042191,2]
[357617902,1744235574860,-169.37275054,0.00042191,2]
[357617903,1744235574870,-579.96,0.00042191,2]
[357617904,1744235574879,-2303.11,0.00042191,2]
[357617905,1744235574889,-21393.93,0.00042191,2]
[357617906,1744235574899,-1487.15,0.00042191,2]
[357617907,1744235574909,-500.0,0.00042191,2]
[357617908,1744235574919,-1444.32,0.00042191,2]
[357617909,1744235574929,-531.51,0.00042191,2]
[357617910,1744235574938,-798.61,0.00042191,2]
[357617911,1744235574948,-663.86,0.00042191,2]
[357617912,1744235574958,-1448.83,0.00042191,2]
[357617913,1744235574967,-1070.68,0.00042191,2]
[357617914,1744235574977,-720.05,0.00042191,2]
[357617915,1744235574987,-4523.75,0.00042191,2]
[357617916,1744235574996,-1045.81,0.00042191,2]
[357617917,1744235575006,-2369.93,0.00042191,2]
[357617918,1744235575016,-675.07,0.00042191,2]
[357617919,1744235575025,-815.31,0.00042191,2]
[357617920,1744235575034,-680.79,0.00042191,2]
[357617921,1744235575044,-3877.45,0.00042191,2]
[357617922,1744235575053,-1072.51,0.00042191,2]
[357617923,1744235575063,-920.84,0.00042191,2]
[357617924,1744235575072,-1250.82,0.00042191,2]
[357617925,1744235575082,-1683.83,0.00042191,2]
[357617926,1744235575091,-904.45,0.00042191,2]
[357617927,1744235575101,-8073.34,0.00042191,2]
[357617928,1744235575110,-951.26,0.00042191,2]
[357617929,1744235575120,-567.52,0.00042191,2]
[357617930,1744235575129,-714.37,0.00042191,2]
[357617931,1744235575139,-507.52,0.00042191,2]
[357617932,1744235575149,-1034.56,0.00042191,2]
[357617933,1744235575159,-7044.24,0.00042191,2]
[357617934,1744235575169,-593.89,0.00042191,2]
[357617935,1744235575179,-614.18,0.00042191,2]
[357617936,1744235575188,-1119.95,0.00042191,2]
[357617937,1744235575197,-1165.25,0.00042191,2]
[357617938,1744235575207,-1010.11,0.00042191,2]
[357617939,1744235575217,-3541.99,0.00042191,2]
[357617940,1744235575227,-2285.66,0.00042191,2]
[357617941,1744235575237,-1097.67,0.00042191,2]
[357617942,1744235575247,-1278.84,0.00042191,30]
[357617943,1744235575257,-249.37621709,0.00042191,2]
[357617944,1744235575266,-737.02,0.00042191,2]
[357617945,1744235575276,-1205.42,0.00042191,2]
[357617946,1744235575286,-622.25,0.00042191,2]
[357617948,1744235575296,-626.72,0.00042191,2]
[357617949,1744235575305,-1595.13,0.00042191,2]
[357617950,1744235575315,-1037.81,0.00042191,2]
[357617951,1744235575325,-993.54,0.00042191,2]
[357617952,1744235575335,-4569.67,0.00042191,2]
[357617953,1744235575344,-597.13,0.00042191,2]
[357617954,1744235575354,-925.07,0.00042191,2]
[357617955,1744235575364,-930.17,0.00042191,2]
[357617956,1744235575373,-500.0,0.00042191,2]
[357617957,1744235575383,-733.46,0.00042191,2]
[357617958,1744235575393,-174.82775153,0.00042191,2]
[357617959,1744235575403,-803.16,0.00042191,2]
[357617960,1744235575412,-1134.05,0.00042191,2]
[357617961,1744235575423,-6999.86,0.00042191,2]
[357617962,1744235575432,-506.21678118,0.00042191,2]
[357617963,1744235575442,-2881.42,0.00042191,2]
[357617964,1744235575452,-42423.7,0.00042191,2]
[357617965,1744235575462,-500.0,0.00042191,2]
[357617966,1744235575473,-1337.8,0.00042191,2]
[357617967,1744235575482,-1079.31,0.00042191,2]
[357617968,1744235575493,-509.05,0.00042191,2]
[357617969,1744235575506,-500.0,0.00042191,2]
[357617970,1744235575517,-1032.24,0.00042191,2]
[357617971,1744235575528,-1046.49,0.00042191,2]
[357617972,1744235575537,-1965.19,0.00042191,2]
[357617973,1744235575548,-1002.75,0.00042191,2]
[357617974,1744235575557,-23770.72,0.00042191,2]
[357617975,1744235575567,-500.0,0.00042191,2]
[357617976,1744235575577,-500.0,0.00042191,2]
[357617977,1744235575587,-1158.53,0.00042191,2]
[357617978,1744235575597,-500.0,0.00042191,2]
[357617979,1744235575607,-2575.45,0.00042191,2]
[357617980,1744235575616,-500.0,0.00042191,2]
[357617981,1744235575626,-500.0,0.00042191,2]
[357617982,1744235575636,-839.12,0.00042191,2]
[357617983,1744235575646,-1417.52,0.00042191,2]
[357617984,1744235575656,-375.65,0.00042191,2]
[357617985,1744235575667,-2351.29,0.00042191,2]
[357617986,1744235575676,-500.0,0.00042191,2]
[357617987,1744235575687,-500.0,0.00042191,2]
[357617988,1744235575696,-925.42,0.00042191,2]
[357617989,1744235575706,-500.0,0.00042191,2]
[357617990,1744235575716,-500.0,0.00042191,2]
[357617991,1744235575726,-4543.65,0.00042191,2]
[357617992,1744235575736,-589.28,0.00042191,2]
[357617993,1744235575745,-500.0,0.00042191,2]
[357617994,1744235575755,-1261.56,0.00042191,2]
[357617995,1744235575765,-908.44,0.00042191,2]
[357617996,1744235575775,-867.74,0.00042191,2]
[357617997,1744235575785,-907.73,0.00042191,2]
[357617998,1744235575795,-660.09,0.00042191,2]
[357617999,1744235575806,-1190.9,0.00042191,2]
[357618000,1744235575816,-1267.15,0.00042191,2]
[357618001,1744235575826,-500.0,0.00042191,2]
[357618002,1744235575836,-4887.83,0.00042191,2]
[357618003,1744235575846,-575.82,0.00042191,2]
[357618004,1744235575856,-774.45,0.00042191,2]
[357618005,1744235575866,-2640.49,0.00042191,2]
[357618006,1744235575876,-570.35,0.00042191,2]
[357618007,1744235575885,-929.61,0.00042191,2]
[357618008,1744235575895,-1204.87,0.00042191,2]
[357618009,1744235575905,-775.07,0.00042191,2]
[357618010,1744235575916,-852.59,0.00042191,2]
[357618011,1744235575926,-535.49,0.00042191,2]
[357618012,1744235575935,-706.53,0.00042191,2]
[357618013,1744235575945,-561.8,0.00042191,2]
[357618014,1744235575955,-1156.21,0.00042191,2]
[357618015,1744235575966,-1013.54,0.00042191,2]
[357618016,1744235575976,-1279.0,0.00042191,2]
[357618017,1744235575986,-1035.19,0.00042191,2]
[357618018,1744235575996,-846.03,0.00042191,2]
[357618019,1744235576006,-2136.41,0.00042191,2]
[357618020,1744235576016,-220.38865213,0.00042191,2]
[357618021,1744235576026,-4235.64,0.00042191,2]
[357618022,1744235576036,-592.54,0.00042191,2]
[357618023,1744235576046,-1028.37,0.00042191,2]
[357618024,1744235576056,-655.91,0.00042191,2]
[357618025,1744235576066,-774.63,0.00042191,2]
[357618026,1744235576075,-668.99,0.00042191,2]
[357618027,1744235576085,-635.46,0.00042191,2]
[357618028,1744235576095,-771.42,0.00042191,2]
[357618029,1744235576105,-150.0,0.00042191,30]
[357618030,1744235576115,-500.0,0.00042191,2]
[357618031,1744235576125,-631.73,0.00042191,2]
[357618032,1744235576135,-1805.21,0.00042191,2]
[357618033,1744235576145,-500.0,0.00042191,2]
[357618034,1744235576155,-342.38695552,0.00042191,2]
[357618035,1744235576165,-2082.58,0.00042191,2]
[357618037,1744235576175,-950.96,0.00042191,2]
[357618038,1744235576184,-548.27,0.00042191,2]
[357618039,1744235576195,-777.86,0.00042191,2]
[357618040,1744235576204,-500.0,0.00042191,2]
[357618041,1744235576214,-720.17,0.00042191,2]
[357618042,1744235576223,-1059.64,0.00042191,2]
[357618043,1744235576232,-587.39,0.00042191,2]
[357618044,1744235576242,-1208.61,0.00042191,2]
[357618045,1744235576251,-174266.75,0.00042191,2]
[357618046,1744235576261,-1106.78,0.00042191,2]
[357618047,1744235576271,-500.0,0.00042191,2]
[357618048,1744235576281,-1260.1,0.00042191,2]
[357618049,1744235576291,-738.67,0.00042191,2]
[357618050,1744235576301,-1252.62,0.00042191,2]
[357618051,1744235576311,-500.0,0.00042191,2]
[357618052,1744235576321,-1523.75,0.00042191,2]
[357618053,1744235576330,-818.49,0.00042191,2]
[357618054,1744235576340,-1025.1,0.00042191,2]
[357618055,1744235576349,-1179.84,0.00042191,2]
[357618056,1744235576359,-2893.36,0.00042191,2]
[357618057,1744235576368,-764.1,0.00042191,2]
[357618058,1744235576379,-21329.92,0.00042191,2]
[357618059,1744235576388,-707.54,0.00042191,2]
[357618060,1744235576398,-500.0,0.00042191,2]
[357618061,1744235576407,-283.45265436,0.00042191,2]
[357618062,1744235576418,-1217.62,0.00042191,2]
[357618063,1744235576428,-500.0,0.00042191,2]
[357618064,1744235576438,-653.91,0.00042191,2]
[357618065,1744235576448,-2083.86,0.00042191,2]
[357618066,1744235576458,-2729.49,0.00042191,2]
[357618067,1744235576469,-545.55,0.00042191,2]
[357618068,1744235576481,-500.0,0.00042191,2]
[357618069,1744235576491,-510.38,0.00042191,2]
[357618071,1744235576502,-1954.17,0.00042191,2]
[357618072,1744235576512,-1354.05,0.00042191,2]
[357618073,1744235576523,-814.9,0.00042191,2]
[357618074,1744235576533,-1048.37,0.00042191,2]
[357618075,1744235576543,-500.0,0.00042191,2]
[357618076,1744235576554,-4649.78,0.00042191,2]
[357618077,1744235576565,-500.0,0.00042191,2]
[357618078,1744235576575,-1964.65,0.00042191,2]
[357618079,1744235576585,-694.5,0.00042191,2]
[357618080,1744235576595,-1127.83,0.00042191,2]
[357618081,1744235576605,-507.13,0.00042191,2]
[357618082,1744235576615,-570.34,0.00042191,2]
[357618083,1744235576626,-1498.03,0.00042191,2]
[357618084,1744235576636,-809.55,0.00042191,2]
[357618086,1744235576893,-2525.83,0.00042191,2]
[357618087,1744235576903,-955.21,0.00042191,2]
[357618088,1744235576913,-1151.05,0.00042191,2]
[357618089,1744235576923,-500.0,0.00042191,2]
[357618090,1744235576934,-500.0,0.00042191,2]
[357618091,1744235576943,-500.0,0.00042191,2]
[357618092,1744235576953,-500.0,0.00042191,2]
[357618093,1744235576963,-500.0,0.00042191,2]
[357618094,1744235576972,-511.52,0.00042191,2]
[357618095,1744235576981,-686.74,0.00042191,2]
[357618096,1744235576991,-500.0,0.00042191,2]
[357618097,1744235577001,-500.0,0.00042191,2]
[357618098,1744235577010,-5051.26,0.00042191,2]
[357618099,1744235577020,-507.91,0.00042191,2]
[357618100,1744235577029,-350.0,0.00042192,10]
[357618101,1744235577039,-151.041005,0.00042198,120]
[357618102,1744235577050,-258.77,0.00042199,30]
[357618103,1744235577059,-150.0,0.00042199,30]
[357618104,1744235577069,-150.0,0.00042199,30]
[357618105,1744235577079,-150.0,0.00042199,30]
[357618106,1744235577088,-150.0,0.00042199,30]
[357618107,1744235577099,-150.0,0.00042199,30]
[357618108,1744235577108,-150.0,0.00042199,30]
[357618109,1744235577118,-150.0,0.00042199,30]
[357618110,1744235577128,-2764.48569435,0.00042258,14]
[357618111,1744235577138,-370.91026638,0.00042271,2]
[357618113,1744235577148,-452.0,0.00042288,90]
[357618114,1744235577157,-154.0,0.00042288,90]
[357618115,1744235577168,-165.94339,0.00042288,7]
[357618116,1744235577177,-211.59023746,0.00042328,30]
[357618117,1744235577187,-594.09895703,0.00042411,30]
[357618118,1744235577197,-316.95817784,0.00042445,30]
[357618119,1744235577207,-150.0,0.00042464,120]
[357618120,1744235577216,-500.0,0.00042465,2]
[357618121,1744235577226,-768.82,0.00042465,2]
[357618122,1744235577235,-1033.22,0.00042465,2]
[357618123,1744235577245,-690.19,0.00042465,2]
[357618124,1744235577255,-247.17748202,0.00042465,2]
[357618125,1744235577264,-653.93,0.00042465,2]
[357618126,1744235577274,-500.0,0.00042465,2]
[357618127,1744235577284,-264.06487325,0.00042465,2]
[357618128,1744235577294,-562.39,0.00042465,2]
[357618129,1744235577303,-500.0,0.00042465,2]
[357618130,1744235577313,-500.0,0.00042465,2]
[357618131,1744235577322,-500.0,0.00042465,2]
[357618132,1744235577331,-523.63,0.00042465,2]
[357618133,1744235577341,-575.25,0.00042465,2]
[357618134,1744235577349,-643.66,0.00042465,2]
[357618135,1744235577359,-500.0,0.00042465,2]
[357618136,1744235577369,-500.0,0.00042465,2]
[357618137,1744235577378,-517.26,0.00042465,2]
[357618138,1744235577387,-509.1,0.00042465,2]
[357618139,1744235577397,-544.02,0.00042465,2]
[357618140,1744235577407,-1591.25,0.00042465,2]
[357618141,1744235577416,-158.229282,0.00042465,2]
[357618142,1744235577425,-922.766495,0.00042465,2]
[357618143,1744235577435,-500.0,0.00042465,2]
[357618144,1744235577444,-512.21,0.00042465,2]
[357618145,1744235577453,-1481.605419,0.00042465,2]
[357618146,1744235577463,-575.18,0.00042465,2]
[357618148,1744235577473,-1103.241651,0.00042465,2]
[357618149,1744235577483,-500.0,0.00042465,2]
[357618150,1744235577493,-152.130457,0.00042465,2]
[357618151,1744235577504,-555.55,0.00042465,2]
[357618152,1744235577514,-716.17,0.00042465,2]
[357618153,1744235577523,-569.8,0.00042465,2]
[357618154,1744235577532,-500.0,0.00042465,2]
[357618155,1744235577542,-500.0,0.00042465,2]
[357618156,1744235577551,-523.55,0.00042465,2]
[357618157,1744235577562,-500.0,0.00042465,2]
[357618158,1744235577573,-500.0,0.00042465,2]
[357618159,1744235577583,-641.56,0.00042465,2]
[357618160,1744235577593,-522.12,0.00042465,2]
[357618161,1744235577602,-671.33,0.00042465,2]
[357618162,1744235577611,-500.0,0.00042465,2]
[357618163,1744235577620,-898.3,0.00042465,2]
[357618164,1744235577631,-265.451744,0.00042465,2]
[357618165,1744235577640,-500.0,0.00042465,2]
[357618166,1744235577650,-500.0,0.00042465,2]
[357618167,1744235577661,-156.788597,0.00042465,2]
[357618168,1744235577671,-1488.11,0.00042465,2]
[357618169,1744235577681,-500.0,0.00042465,2]
[357618170,1744235577691,-1346.88,0.00042465,2]
[357618171,1744235577701,-600.91,0.00042465,2]
[357618172,1744235577710,-500.0,0.00042465,2]
[357618173,1744235577720,-510.57,0.00042465,2]
[357618174,1744235577730,-1062.56,0.00042465,2]
[357618175,1744235577739,-1328.67,0.00042465,2]
[357618176,1744235577749,-1098.1,0.00042465,2]
[357618177,1744235577759,-1109.78,0.00042465,2]
[357618178,1744235577768,-500.0,0.00042465,2]
[357618179,1744235577778,-500.0,0.00042465,2]
[357618180,1744235577787,-500.0,0.00042465,2]
[357618182,1744235577796,-2058.98,0.00042465,2]
[357618183,1744235577806,-601.54,0.00042465,2]
[357618184,1744235577816,-704.15,0.00042465,2]
[357618185,1744235577825,-500.0,0.00042465,2]
[357618186,1744235577835,-1533.75,0.00042465,2]
[357618187,1744235577845,-890.15,0.00042465,2]
[357618188,1744235577855,-1091.45,0.00042465,2]
[357618189,1744235577864,-2033.59,0.00042465,2]
[357618190,1744235577873,-998.38,0.00042465,2]
[357618191,1744235577883,-990.73,0.00042465,2]
[357618192,1744235577892,-740.02,0.00042465,2]
[357618193,1744235577902,-840.51,0.00042465,2]
[357618194,1744235577912,-1255.28,0.00042465,2]
[357618195,1744235577922,-500.0,0.00042465,2]
[357618196,1744235577932,-628.73,0.00042465,2]
[357618197,1744235577941,-1122.08,0.00042465,2]
[357618198,1744235577951,-851.89,0.00042465,2]
[357618199,1744235577960,-500.0,0.00042465,2]
[357618200,1744235577969,-500.0,0.00042465,2]
[357618201,1744235577978,-1594.69,0.00042465,2]
[357618202,1744235577988,-846.31,0.00042465,2]
[357618203,1744235577997,-634.01,0.00042465,2]
[357618204,1744235578007,-500.0,0.00042465,2]
[357618205,1744235578016,-500.0,0.00042465,2]
[357618206,1744235578026,-1789.24,0.00042465,2]
[357618207,1744235578035,-500.0,0.00042465,2]
[357618208,1744235578045,-500.0,0.00042465,2]
[357618209,1744235578056,-500.0,0.00042465,2]
[357618210,1744235578065,-904.2,0.00042465,2]
[357618211,1744235578075,-2100.49,0.00042465,2]